bitfinex-derivatives/quotes_SOLF0:USTF0_20240908
["timestamp","ask_amount","ask_price","bid_price","bid_amount"]
[1725791427046,23.0,130.55,130.49,2.6822]
[1725791427047,2.6812,130.55,130.52,2.6816]
[1725791427343,118.16032592,130.56,130.49,3.79914169]
[1725791427532,118.16032592,130.56,130.5,1.3219]
[1725791427845,118.16032592,130.56,130.5,5.07965921]
[1725791428137,2.6807,130.57,130.54,2.6812]
[1725791434852,2.6809,130.56,130.53,2.6814]
[1725791435052,2.6809,130.56,130.54,3.84556607]
[1725791436246,30.76067766,130.6,130.54,6.52666607]
[1725791436743,2.6806,130.57,130.54,6.52666607]
[1725791437554,30.76067766,130.6,130.54,6.52666607]
[1725791438447,2.6808,130.56,130.54,6.52666607]
[1725791441646,2.6808,130.56,130.54,3.84556607]
[1725791441851,2.6808,130.56,130.53,2.6814]
[1725791442051,2.6808,130.56,130.54,3.78705044]
[1725791443858,30.76067766,130.6,130.54,3.78705044]
[1725791444159,30.76067766,130.6,130.54,2.6811]
[1725791444349,30.76067766,130.6,130.54,6.4769602]
[1725791444550,2.6808,130.57,130.54,2.6811]
[1725791445059,30.76067766,130.6,130.54,3.74328834]
[1725791445359,30.76067766,130.6,130.45,4.06146083]
[1725791445360,26.9787,130.6,130.45,4.06146083]
[1725791445659,0.28163013,130.59,130.45,6.48345353]
[1725791445846,0.28163013,130.59,130.45,5.13155353]
[1725791446050,0.28163013,130.59,130.42,1.3519]
[1725791446252,2.6824,130.49,130.45,2.6831]
[1725791446458,26.86625145,130.5,130.45,2.6831]
[1725791446750,26.86625145,130.5,130.42,1.3519]
[1725791446957,2.6826,130.48,130.44,2.6833]
[1725791447558,2.6827,130.47,130.44,2.6833]
[1725791449052,2.6827,130.47,130.43,2.6835]
[1725791450460,1.3225,130.49,130.41,164.89256477]
[1725791450658,1.3922,130.48,130.41,164.89256477]
[1725791451559,2.6829,130.46,130.41,167.57646477]
[1725791451953,1.3922,130.48,130.41,167.57646477]
[1725791452561,2.6832,130.45,130.41,167.57646477]
[1725791452755,1.3922,130.48,130.41,167.57646477]
[1725791453555,2.6836,130.43,130.41,160.99911587]
[1725791454460,1.3922,130.48,130.39,6.43075403]
[1725791454663,1.3922,130.48,130.39,2.6843]
[1725791454853,2.6837,130.43,130.39,2.6843]
[1725791456564,1.3922,130.48,130.38,5.06561856]
[1725791457359,2.6833,130.44,130.4,2.6841]
[1725791458364,2.6832,130.45,130.41,2.6839]
[1725791459863,2.6833,130.44,130.41,2.6839]
[1725791460463,2.6833,130.44,130.4,2.6841]
[1725791463367,1.3922,130.48,130.38,5.06561856]
[1725791463368,2.6832,130.45,130.41,2.6839]
[1725791465157,2.6832,130.45,130.42,2.6837]
[1725791465663,2.6829,130.46,130.38,5.06561856]
[1725791466361,1.3922,130.48,130.38,5.06561856]
[1725791467471,2.6833,130.44,130.38,5.06561856]
[1725791468059,2.6833,130.44,130.4,2.684]
[1725791468261,1.3922,130.48,130.38,5.06561856]
[1725791468671,1.3922,130.48,130.41,2.6839]
[1725791470566,2.6834,130.44,130.41,2.6839]
[1725791471169,2.6835,130.43,130.4,2.6841]
[1725791477272,2.6834,130.44,130.4,2.6841]
[1725791477465,1.3922,130.48,130.41,2.6839]
[1725791477863,2.6834,130.44,130.41,2.6839]
[1725791478267,2.6834,130.44,130.4,2.684]
[1725791486874,2.6834,130.44,130.41,2.6839]
[1725791489474,2.6832,130.45,130.39,3.90393275]
[1725791489676,2.6832,130.45,130.35,1.3337]
[1725791490370,2.6832,130.45,130.42,2.6837]
[1725791491080,1.3922,130.48,130.41,2.6838]
[1725791491481,1.3922,130.48,130.39,3.89771355]
[1725791491676,2.6832,130.45,130.42,2.6837]
[1725791495082,1.3922,130.48,130.39,3.91266789]
[1725791495296,1.3922,130.48,130.4,2.6511]
[1725791495480,2.7024,130.49,130.4,6.40770597]
[1725791496387,2.6828,130.47,130.44,2.6832]
[1725791500880,2.7024,130.49,130.4,6.40770597]
[1725791502284,2.6828,130.47,130.44,2.6833]
[1725791502888,2.7024,130.49,130.43,2.6834]
[1725791504293,2.683,130.46,130.43,2.6834]
[1725791511296,2.7024,130.49,130.4,6.40770597]
[1725791511297,2.6832,130.45,130.42,2.6837]
[1725791529106,2.6833,130.44,130.41,2.6838]
[1725791529309,2.7024,130.49,130.42,4.0651477]
[1725791529511,2.7024,130.49,130.41,4.06656925]
[1725791529713,2.7024,130.49,130.34,4.06892403]
[1725791529714,7.30424892,130.49,130.34,4.06892403]
[1725791529915,23.0,130.48,130.35,4.06892403]
[1725791530106,2.6841,130.41,130.37,2.6847]
[1725791530309,1.3056,130.47,130.38,4.06888042]
[1725791530515,1.3056,130.47,130.37,2.6847]
[1725791530713,1.3056,130.47,130.38,4.06853386]
[1725791530915,1.3056,130.47,130.37,2.6847]
[1725791531316,2.6841,130.4,130.37,2.6847]
[1725791532412,2.6841,130.4,130.36,2.6849]
[1725791535622,2.6841,130.4,130.37,2.6847]
[1725791536218,1.3672,130.41,130.33,166.55578888]
[1725791536424,1.3672,130.41,130.33,165.26378888]
[1725791536425,4.0741,130.41,130.33,165.26378888]
[1725791537021,2.6847,130.38,130.34,2.6854]
[1725791539428,2.6848,130.37,130.34,2.6854]
[1725791540030,3.8860342,130.4,130.35,2.6851]
[1725791540232,3.8860342,130.4,130.33,165.26378888]
[1725791540427,2.6844,130.39,130.33,165.26378888]
[1725791540927,2.6844,130.39,130.35,2.685]
[1725791541433,2.6844,130.39,130.36,2.6849]
[1725791543135,1.3672,130.41,130.33,165.26378888]
[1725791543723,4.0511,130.41,130.37,2.6846]
[1725791545537,4.0511,130.41,130.38,2.6845]
[1725791553745,1.3672,130.41,130.33,165.26378888]
[1725791554137,4.0512,130.41,130.38,2.6844]
[1725791564146,2.6842,130.4,130.37,2.6847]
[1725791565150,2.6844,130.39,130.37,2.6847]
[1725791565653,3.8349,130.39,130.33,165.26378888]
[1725791566049,1.3672,130.41,130.33,169.10018888]
[1725791566252,3.8358,130.36,130.33,163.98858888]
[1725791567144,3.836,130.35,130.33,163.98858888]
[1725791569153,3.836,130.35,130.32,3.8367]
[1725791571952,1.3672,130.41,130.33,3.8366]
[1725791572154,1.3672,130.41,130.31,3.85169507]
[1725791572455,1.3672,130.41,130.29,163.03851796]
[1725791572658,3.8355,130.37,130.33,3.8363]
[1725791573346,3.8355,130.37,130.34,3.8362]
[1725791575852,1.3672,130.41,130.33,3.8363]
[1725791576462,3.8356,130.37,130.33,3.8363]
[1725791577146,3.8359,130.36,130.29,166.83867139]
[1725791579360,3.8354,130.37,130.29,166.83867139]
[1725791579957,1.3672,130.41,130.29,166.83867139]
[1725791581058,3.8353,130.38,130.34,3.836]
[1725791581575,3.8353,130.38,130.35,3.8358]
[1725791582259,3.8353,130.38,130.34,3.8361]
[1725791582464,1.3672,130.41,130.29,166.83867139]
[1725791584368,3.8347,130.4,130.29,166.83867139]
[1725791584864,23.02,130.46,130.29,166.83867139]
[1725791585067,23.02,130.46,130.3,9.08430589]
[1725791585267,23.02,130.46,130.31,1.40940589]
[1725791585865,3.8339,130.43,130.31,1.40940589]
[1725791586063,23.02,130.46,130.31,1.40940589]
[1725791586963,3.8339,130.42,130.31,1.40940589]
[1725791587567,3.8339,130.42,130.3,7.6749]
[1725791587869,3.8339,130.42,130.31,1.40939339]
[1725791588474,3.8339,130.42,130.3,7.6749]
[1725791588475,3.81240666,130.43,130.3,7.6749]
[1725791588665,1.2845,130.42,130.3,7.6749]
[1725791588865,1.2845,130.42,130.38,3.8351]
[1725791589066,5.1186,130.42,130.38,3.8351]
[1725791589369,1.2845,130.42,130.38,3.8351]
[1725791590366,3.8342,130.41,130.38,3.8351]
[1725791591573,3.8342,130.41,130.37,7.75853912]
[1725791591875,3.8342,130.41,130.37,3.8353]
[1725791592474,3.8342,130.41,130.37,7.6381223]
[1725791598079,3.8342,130.41,130.38,3.8351]
[1725791601882,1.2845,130.42,130.32,3.8367]
[1725791602079,2.7827,130.41,130.29,166.83867139]
[1725791602872,3.8356,130.37,130.32,3.8368]
[1725791603575,3.8357,130.36,130.32,3.8368]
[1725791608078,3.836,130.35,130.31,3.8371]
[1725791608275,2.7827,130.41,130.29,166.83867139]
[1725791608684,3.8362,130.35,130.3,3.8372]
[1725791608875,2.7827,130.41,130.3,3.8372]
[1725791609273,3.8364,130.34,130.3,3.8372]
[1725791614496,3.8364,130.34,130.31,3.8371]
[1725791614889,3.80255946,130.36,130.29,165.58177139]
[1725791615094,2.7827,130.41,130.3,3.8373]
[1725791615493,3.8364,130.34,130.3,3.8373]
[1725791619996,3.8366,130.33,130.3,3.8373]
[1725791622217,3.8366,130.33,130.29,169.41937139]
[1725791625314,3.8369,130.32,130.29,169.41937139]
[1725791627318,3.8369,130.32,130.29,165.61921796]
[1725791629008,3.8366,130.33,130.29,165.61921796]
[1725791629215,3.8366,130.33,130.3,3.8373]
[1725791632313,3.8366,130.33,130.29,165.61911796]
[1725791644517,2.592,130.35,130.29,161.78161796]
[1725791644719,1.3032,130.39,130.29,161.78161796]
[1725791645018,2.7588,130.42,130.3,2.6814]
[1725791645215,2.7588,130.42,130.36,3.8355]
[1725791645618,3.8344,130.41,130.36,3.8356]
[1725791646013,3.8344,130.41,130.36,7.62425781]
[1725791646927,3.8344,130.41,130.36,3.8356]
[1725791649230,3.8345,130.4,130.36,3.8356]
[1725791670860,2.7588,130.42,130.35,3.76410098]
[1725791670861,1.367,130.42,130.35,3.76410098]
[1725791671054,1.367,130.42,130.3,2.6814]
[1725791671359,3.8338,130.43,130.39,3.8346]
[1725791671556,3.8338,130.43,130.4,3.78048232]
[1725791671748,3.8338,130.43,130.3,2.6814]
[1725791671952,3.8338,130.43,130.39,3.8345]
[1725791672154,3.8335,130.44,130.39,3.78048232]
[1725791672459,3.8335,130.44,130.4,3.8343]
[1725791677263,3.8335,130.44,130.39,3.87253018]
[1725791677460,3.8335,130.44,130.31,7.6743]
[1725791677660,3.8335,130.44,130.32,1.40923315]
[1725791678063,3.8335,130.44,130.31,7.6743]
[1725791678256,3.8335,130.44,130.32,1.40920033]
[1725791678458,3.8335,130.44,130.41,3.8341]
[1725791678766,3.8335,130.44,130.41,7.65214776]
[1725791680969,3.8335,130.44,130.41,3.8341]
[1725791681461,3.8335,130.44,130.41,7.73756522]
[1725791681658,3.8335,130.44,130.41,3.8341]
[1725791682271,3.8332,130.45,130.41,3.8341]
[1725791684373,1.2826,130.46,130.41,3.8341]
[1725791685263,3.8334,130.44,130.41,3.8341]
[1725791685770,1.2826,130.46,130.4,3.8344]
[1725791686575,3.8336,130.44,130.4,3.8344]
[1725791686867,1.2826,130.46,130.4,3.8344]
[1725791687874,3.8335,130.44,130.41,3.8341]
[1725791688071,1.2826,130.46,130.41,3.8341]
[1725791688662,3.8332,130.45,130.41,3.8341]
[1725791690978,3.8332,130.45,130.39,3.79274651]
[1725791690979,3.8332,130.45,130.42,3.8339]
[1725791697773,3.8333,130.44,130.41,3.834]
[1725791699780,3.8333,130.44,130.39,3.79274651]
[1725791699781,3.8337,130.43,130.4,3.8344]
[1725791705484,3.8337,130.43,130.39,7.62734651]
[1725791705684,3.8337,130.43,130.39,3.8346]
[1725791705985,3.834,130.42,130.39,3.8346]
[1725791706186,1.2826,130.46,130.36,3.8355]
[1725791706388,3.8344,130.41,130.37,3.75210036]
[1725791706579,3.8797776,130.43,130.34,153.78442098]
[1725791706785,1.2826,130.46,130.36,3.8355]
[1725791707082,1.2826,130.46,130.36,7.75438594]
[1725791707083,3.8348,130.4,130.36,7.75438594]
[1725791707284,3.8348,130.4,130.36,3.8355]
[1725791708279,3.8349,130.39,130.35,7.61253893]
[1725791709390,3.8346,130.4,130.36,3.8355]
[1725791720494,5.1554,130.41,130.37,3.8353]
[1725791720684,14.05419467,130.48,130.35,3.77663893]
[1725791720883,1.3238,130.45,130.35,2.7318]
[1725791721090,1.3238,130.45,130.35,6.50883635]
[1725791721683,3.8341,130.42,130.38,3.8349]
[1725791728393,3.8341,130.42,130.39,3.8347]
[1725791729295,3.8336,130.43,130.4,3.8343]
[1725791730599,3.8336,130.43,130.39,3.8346]
[1725791731199,3.8334,130.44,130.4,3.8343]
[1725791735002,5.1569,130.45,130.35,6.50883635]
[1725791735807,5.1569,130.45,130.41,3.834]
[1725791736610,5.1569,130.45,130.42,3.74233128]
[1725791737515,5.1569,130.45,130.42,7.57623128]
[1725791739610,5.1569,130.45,130.42,3.8339]
[1725791745820,3.8333,130.44,130.41,3.8341]
[1725791746120,1.3238,130.45,130.35,6.50883635]
[1725791746310,3.8338,130.43,130.35,6.50883635]
[1725791747018,3.8338,130.43,130.39,3.8346]
[1725791750209,3.91650233,130.43,130.36,3.8355]
[1725791750421,1.3238,130.45,130.36,3.8355]
[1725791750422,2.5745,130.42,130.36,3.8355]
[1725791750821,3.8345,130.41,130.36,3.8355]
[1725791751017,3.8345,130.41,130.37,3.8354]
[1725791754113,2.5745,130.42,130.36,3.75593622]
[1725791754320,1.3215,130.4,130.34,153.78442098]
[1725791755529,1.3215,130.4,130.35,3.8357]
[1725791755718,1.3215,130.4,130.36,3.87167293]
[1725791756323,3.8348,130.39,130.36,3.87167293]
[1725791760429,5.1561,130.4,130.36,7.70737293]
[1725791761035,3.8348,130.39,130.36,7.70737293]
[1725791764432,1.3215,130.4,130.37,3.8354]
[1725791764637,2.5745,130.42,130.37,3.8354]
[1725791765238,3.8344,130.41,130.37,3.8354]
[1725791768242,3.8344,130.41,130.38,3.8351]
[1725791768939,3.8344,130.41,130.37,3.8353]
[1725791769240,1.3051,130.42,130.37,3.8353]
[1725791769739,3.8344,130.41,130.37,3.8353]
[1725791770139,3.8346,130.4,130.37,3.8353]
[1725791770841,3.8346,130.4,130.36,7.70727293]
[1725791771438,1.3843,130.45,130.36,3.87167293]
[1725791771633,1.3843,130.45,130.35,1.366]
[1725791771838,1.3843,130.45,130.35,5.28408755]
[1725791772038,3.8337,130.43,130.39,3.8346]
[1725791774034,3.8337,130.43,130.35,5.28408755]
[1725791774739,3.8337,130.43,130.39,3.8346]
[1725791777835,3.75009585,130.43,130.35,3.91808755]
[1725791778040,2.6331,130.42,130.34,153.78442098]
[1725791778239,6.44492424,130.42,130.34,153.78442098]
[1725791778642,3.8345,130.4,130.37,3.8354]
[1725791778946,6.44492424,130.42,130.34,153.78442098]
[1725791779144,6.44492424,130.42,130.36,3.8357]
[1725791779339,6.44492424,130.42,130.34,153.78442098]
[1725791780453,3.835,130.39,130.35,3.8359]
[1725791783239,29.46492424,130.42,130.34,157.62062098]
[1725791783444,29.46492424,130.42,130.34,153.78442098]
[1725791784764,3.8356,130.37,130.34,157.62062098]
[1725791785959,6.44492424,130.42,130.35,3.8359]
[1725791785960,3.8353,130.38,130.35,3.8359]
[1725791790763,3.8353,130.38,130.34,157.62052098]
[1725791791169,3.8356,130.37,130.34,153.78442098]
[1725791796864,3.8358,130.36,130.34,153.78442098]
[1725791801972,29.46492424,130.42,130.32,3.8367]
[1725791802367,29.46492424,130.42,130.27,2.7114]
[1725791802875,0.28203253,130.41,130.27,2.7114]
[1725791803176,0.28203253,130.41,130.27,6.58502848]
[1725791803384,3.8363,130.34,130.31,3.8369]
[1725791809389,3.8363,130.34,130.3,3.8373]
[1725791813886,3.8361,130.35,130.31,3.8371]
[1725791821394,3.8363,130.34,130.31,3.8371]
[1725791821599,135.21216929,130.4,130.31,3.8371]
[1725791821795,3.8361,130.35,130.31,3.8371]
[1725791823996,3.8361,130.35,130.32,3.8368]
[1725791824188,112.19216929,130.4,130.28,3.81301312]
[1725791824388,112.19216929,130.4,130.27,151.73605084]
[1725791824994,3.8358,130.36,130.33,3.8365]
[1725791827090,112.19216929,130.4,130.32,3.8368]
[1725791827989,3.836,130.35,130.32,3.8368]
[1725791829400,3.836,130.35,130.31,3.837]
[1725791829594,3.836,130.35,130.27,155.60315741]
[1725791829895,3.8364,130.34,130.27,155.60315741]
[1725791830795,3.8364,130.34,130.3,3.8372]
[1725791832096,3.8376,130.3,130.26,3.8384]
[1725791832599,3.74155923,130.32,130.22,1.3682]
[1725791832905,3.8379,130.29,130.24,3.839]
[1725791833897,3.8376,130.3,130.25,3.8388]
[1725791834111,1.3282,130.32,130.22,5.22831356]
[1725791834294,2.5736,130.33,130.27,3.8381]
[1725791834491,3.8371,130.32,130.27,3.8381]
[1725791836198,3.8371,130.32,130.28,3.838]
[1725791836698,5.1417,130.33,130.29,3.89430457]
[1725791836911,1.305,130.33,130.29,3.89430457]
[1725791837095,1.3282,130.37,130.22,5.22831356]
[1725791837293,1.2717,130.36,130.22,5.22831356]
[1725791837998,3.81716303,130.35,130.22,5.22831356]
[1725791838299,1.2717,130.36,130.22,5.22831356]
[1725791838506,3.78366971,130.35,130.22,5.22831356]
[1725791838898,3.8367,130.33,130.22,5.22831356]
[1725791839599,3.837,130.32,130.22,5.22831356]
[1725791839999,3.78366971,130.35,130.22,5.22831356]
[1725791840505,3.8368,130.33,130.28,3.8379]
[1725791842412,3.8369,130.32,130.28,3.8379]
[1725791848705,3.8362,130.35,130.31,3.837]
[1725791849303,3.8363,130.34,130.3,152.29739448]
[1725791851807,1.3628,130.38,130.3,152.29739448]
[1725791851808,1.3628,130.38,130.35,3.8357]
[1725791852013,1.3628,130.38,130.3,151.08209448]
[1725791852709,1.3628,130.38,130.34,3.8361]
[1725791853409,1.3628,130.38,130.3,151.08209448]
[1725791853410,1.3628,130.38,130.32,3.8367]
[1725791853715,1.3628,130.38,130.3,151.08209448]
[1725791854509,1.3628,130.38,130.34,3.836]
[1725791855516,1.3628,130.38,130.35,3.836]
[1725791857418,3.8346,130.4,130.37,3.8353]
[1725791857717,2.5661,130.41,130.3,151.08209448]
[1725791858115,6.4005,130.41,130.37,3.8351]
[1725791860615,6.4005,130.41,130.38,3.835]
[1725791865824,2.5661,130.41,130.39,3.8348]
[1725791867621,6.4004,130.41,130.38,3.8349]
[1725791870731,2.5661,130.41,130.3,151.08209448]
[1725791871323,3.8347,130.4,130.36,3.8355]
[1725791871924,2.5661,130.41,130.36,3.8355]
[1725791871925,3.8348,130.39,130.36,3.8355]
[1725791872329,3.8351,130.38,130.35,3.8359]
[1725791872533,2.5661,130.41,130.3,151.08209448]
[1725791873031,3.8349,130.39,130.35,3.8357]
[1725791873422,3.8349,130.39,130.36,3.8357]
[1725791873633,3.8347,130.4,130.36,3.8357]
[1725791879537,3.8347,130.4,130.37,3.8354]
[1725791881034,3.8347,130.4,130.36,3.8356]
[1725791882735,3.8348,130.39,130.36,3.8356]
[1725791887041,3.8348,130.39,130.35,3.8358]
[1725791887232,2.5661,130.41,130.35,3.8358]
[1725791887438,3.8351,130.38,130.35,3.8358]
[1725791888840,3.8351,130.38,130.34,3.8361]
[1725791891943,2.5661,130.41,130.3,151.08209448]
[1725791891944,3.8349,130.39,130.35,3.8359]
[1725791893046,3.8351,130.38,130.35,3.8359]
[1725791895650,3.8353,130.38,130.34,3.8363]
[1725791895946,3.8353,130.38,130.3,151.08209448]
[1725791896748,3.8353,130.38,130.35,3.8359]
[1725791901149,2.5661,130.41,130.35,3.8359]
[1725791901452,3.8349,130.39,130.35,3.8359]
[1725791904162,3.8352,130.38,130.34,3.8361]
[1725791905554,3.83936824,130.39,130.3,151.08209448]
[1725791905758,2.5661,130.41,130.3,151.08209448]
[1725791906153,3.8357,130.36,130.3,151.08209448]
[1725791906353,3.75727964,130.38,130.3,149.73439448]
[1725791906556,3.8365,130.34,130.3,148.45999448]
[1725791906769,3.79172285,130.35,130.3,148.45999448]
[1725791906969,1.3369,130.34,130.3,148.45999448]
[1725791907172,3.8367,130.33,130.3,148.45999448]
[1725791910958,3.8364,130.34,130.3,148.45999448]
[1725791911158,1.3066,130.37,130.3,148.45999448]
[1725791911564,3.8362,130.35,130.31,3.8369]
[1725791914272,3.8358,130.36,130.3,148.45999448]
[1725791914565,3.8358,130.36,130.3,151.05839448]
[1725791915773,3.8358,130.36,130.32,3.8366]
[1725791916967,3.8358,130.36,130.33,3.8365]
[1725791931670,3.8355,130.37,130.33,3.8365]
[1725791932074,3.8355,130.37,130.3,151.05839448]
[1725791932275,5.1679,130.38,130.3,151.05839448]
[1725791932585,5.1679,130.38,130.34,3.8361]
[1725791938091,1.3363,130.41,130.37,3.8354]
[1725791938279,1.3363,130.41,130.3,151.05839448]
[1725791938785,3.8346,130.4,130.36,3.8355]
[1725791943691,3.8346,130.4,130.37,3.8353]
[1725791953192,1.3363,130.41,130.3,151.05839448]
[1725791953589,1.3363,130.41,130.32,3.8368]
[1725791953783,1.3363,130.41,130.3,149.79619448]
[1725791954093,1.3363,130.41,130.3,148.45999448]
[1725791954592,3.836,130.35,130.31,3.837]
[1725791955784,3.8363,130.34,130.31,3.837]
[1725791957089,3.8362,130.35,130.31,3.837]
[1725791959294,3.88356216,130.36,130.3,148.45999448]
[1725791959503,1.3363,130.41,130.3,148.45999448]
[1725791959906,3.8359,130.36,130.32,3.8367]
[1725791960102,7.69955648,130.36,130.32,3.8367]
[1725791960300,3.8359,130.36,130.32,3.8367]
[1725791960506,3.836,130.35,130.31,3.8371]
[1725791966702,3.836,130.35,130.32,3.8368]
[1725791967010,3.8358,130.36,130.32,3.8368]
[1725791968198,7.60707983,130.37,130.33,3.8365]
[1725791968402,3.8355,130.37,130.33,3.8365]
[1725791969099,7.68371976,130.37,130.33,3.8365]
[1725791970210,7.68371976,130.37,130.32,3.8366]
[1725791970211,3.8357,130.36,130.32,3.8366]
[1725791974613,3.836,130.35,130.31,3.8369]
[1725791977716,3.8355,130.37,130.33,3.8363]
[1725791977919,1.2878,130.4,130.3,164.26696122]
[1725791978114,3.8358,130.36,130.32,3.8367]
[1725791980613,3.8358,130.36,130.33,3.8365]
[1725791980812,1.2878,130.4,130.3,165.55486122]
[1725791981013,3.8165547,130.39,130.3,166.81246122]
[1725791982309,3.8354,130.37,130.34,3.8362]
[1725791984121,1.2878,130.4,130.35,3.8359]
[1725791984917,3.8353,130.38,130.34,3.8362]
[1725791985120,1.2878,130.4,130.34,3.8362]
[1725791987021,3.8352,130.38,130.34,3.8362]
[1725791993527,3.8352,130.38,130.35,3.8359]
[1725791995928,3.8352,130.38,130.34,3.8361]
[1725791998935,3.85164318,130.39,130.33,3.8365]
[1725791999133,1.2878,130.4,130.33,3.8365]
[1725791999636,3.8355,130.37,130.33,3.8365]
[1725792001629,3.8357,130.36,130.33,3.8365]
[1725792002023,3.85952355,130.37,130.3,164.26696122]
[1725792002226,1.3823,130.35,130.3,164.26696122]
[1725792002436,3.8364,130.34,130.3,168.10426122]
[1725792002636,3.8364,130.34,130.3,164.26696122]
[1725792003140,5.2184,130.35,130.31,3.837]
[1725792005139,5.2184,130.35,130.32,3.8367]
[1725792006435,5.2184,130.35,130.31,3.837]
[1725792007133,5.2184,130.35,130.3,164.26696122]
[1725792007337,1.3823,130.35,130.3,164.26696122]
[1725792007638,1.3363,130.41,130.3,164.26696122]
[1725792007830,3.8355,130.37,130.33,3.8364]
[1725792008328,3.8355,130.37,130.3,165.53636122]
[1725792008535,3.8355,130.37,130.34,3.8361]
[1725792010040,1.2976,130.4,130.3,165.53636122]
[1725792010534,3.8349,130.39,130.35,3.8357]
[1725792014939,3.8349,130.39,130.36,3.8357]
[1725792016045,3.8349,130.39,130.35,3.8358]
[1725792016743,7.64080717,130.39,130.35,3.8358]
[1725792018845,3.8349,130.39,130.35,3.8358]
[1725792019754,3.8349,130.39,130.36,3.8356]
[1725792019939,1.2976,130.4,130.31,1.3362]
[1725792019940,5.1322,130.4,130.31,1.3362]
[1725792020449,5.1322,130.4,130.36,3.8354]
[1725792020942,5.1322,130.4,130.37,3.8352]
[1725792032155,1.3876,130.45,130.38,3.8349]
[1725792032458,1.3876,130.45,130.36,3.77761583]
[1725792032459,2.7295,130.45,130.36,3.77761583]
[1725792032655,3.8341,130.42,130.31,1.3362]
[1725792033456,3.8341,130.42,130.38,3.8348]
[1725792034158,1.3001,130.44,130.38,3.8348]
[1725792035060,3.8343,130.41,130.38,3.8348]
[1725792039548,3.8343,130.41,130.36,3.87483137]
[1725792039549,3.8341,130.42,130.36,3.87483137]
[1725792039751,3.8341,130.42,130.31,1.3362]
[1725792040062,3.8341,130.42,130.38,3.8349]
[1725792041467,3.8337,130.43,130.4,3.8344]
[1725792042467,3.8337,130.43,130.39,3.8347]
[1725792045062,3.8339,130.42,130.39,3.8347]
[1725792047869,2.7295,130.45,130.37,3.7528762]
[1725792048073,2.7295,130.45,130.32,7.6734]
[1725792048275,3.8335,130.44,130.4,3.8343]
[1725792049160,14.05085045,130.51,130.32,7.6736]
[1725792049364,299.28964328,130.65,130.35,10.67733217]
[1725792049365,27.0471,130.64,130.35,10.67733217]
[1725792049573,27.0471,130.64,130.38,7.675]
[1725792049574,0.28166868,130.63,130.38,7.675]
[1725792049870,3.8303,130.55,130.45,139.57221187]
[1725792050074,6.59081472,130.54,130.46,4.05014878]
[1725792050377,2.6606,130.54,130.46,4.05014878]
[1725792050861,2.6606,130.54,130.5,3.8315]
[1725792052068,2.6606,130.54,130.49,3.8316]
[1725792052975,2.6606,130.54,130.46,4.05014878]
[1725792053972,2.6606,130.54,130.49,3.8316]
[1725792054474,2.6606,130.54,130.5,3.8315]
[1725792054969,2.6606,130.54,130.51,3.8313]
[1725792055677,2.6606,130.54,130.52,3.8308]
[1725792061384,2.6606,130.54,130.53,3.8307]
[1725792064083,2.6606,130.54,130.45,143.31109223]
[1725792064674,2.6606,130.54,130.51,3.8311]
[1725792067384,2.6606,130.54,130.52,3.8308]
[1725792067580,2.6606,130.54,130.45,143.31109223]
[1725792068186,2.6606,130.54,130.52,3.8308]
[1725792072691,2.6606,130.54,130.45,143.31109223]
[1725792073386,3.8311,130.52,130.48,3.832]
[1725792075085,3.8309,130.53,130.49,3.8318]
[1725792079799,3.831,130.52,130.49,3.8318]
[1725792083805,3.8308,130.53,130.5,3.8315]
[1725792084206,2.6606,130.54,130.5,3.8315]
[1725792085314,3.8307,130.53,130.5,3.8315]
[1725792092019,2.6606,130.54,130.45,143.31109223]
[1725792092624,2.6606,130.54,130.51,3.8311]
[1725792093224,6.4911,130.54,130.51,3.8311]
[1725792095314,3.8303,130.55,130.51,3.8311]
[1725792096625,3.8304,130.54,130.51,3.8311]
[1725792098823,3.8302,130.55,130.51,3.8311]